Cogmind - Beta 9.4 @@@ ROGUE MODE // 2020.02.09 @ 03:11:20 Player: Sineso Result: Self-destructed Performance ------------- Evolutions (1) 500 Regions Visited (3) 600 Robots Destroyed (7) 35 Value Destroyed (119) 119 Prototype IDs (0) 0 Alien Tech Used (0) 0 Bonus (0) 0 TOTAL SCORE: 1254 Bonus ------- None Cogmind --------- Core Integrity 351/400 Matter 262/300 Energy 56/250 System Corruption 0% Temperature Cool (54) Movement Flying (117) Ox1 Location -9/Materials Parts ------- > --- POWER (1) -------- Ion Engine > --- PROPULSION (4) --- Flight Unit Flight Unit > --- UTILITY (2) ------ Small Storage Unit Structural Scanner > --- WEAPON (2) ------- (None) > --- INVENTORY (6) ---- Light Ion Engine Light Treads Light Treads Flight Unit Structural Scanner Light Assault Rifle Peak State ------------ > --- POWER ------------ Ion Engine > --- PROPULSION ------- Flight Unit Flight Unit Flight Unit Flight Unit > --- UTILITY ---------- Small Storage Unit Small Storage Unit > --- WEAPON ----------- Light Assault Rifle Light Cannon > --- INVENTORY -------- Light Ion Engine Light Treads Light Treads Flight Unit Structural Scanner Mining Laser [Rating: 9] Favorites ----------- Power Ion Engine Engine Ion Engine Propulsion Light Treads Treads Light Treads Flight Unit Flight Unit Utility Small Storage Unit Device Structural Scanner Storage Small Storage Unit Weapon Light Assault Rifle Energy Gun EM Pulse Gun Ballistic Gun Light Assault Rifle Ballistic Cannon Light Cannon Special Weapon Mining Laser Build | -11 -10 -10 -9 ------- Run | Scr Mat Min Mat Slots Evolved 2 | . . . 2 Power . | . . . . Propulsion 2 | . . . 2 Utility . | . . . . Weapon . | . . . . Parts Attached 14 | 6 1 1 6 Power 1 | 1 . . . Engine 1 | 1 . . . Core . | . . . . Reactor . | . . . . Propulsion 6 | 2 . . 4 Treads 2 | 2 . . . Leg . | . . . . Wheel . | . . . . Hover . | . . . . Flight 4 | . . . 4 Utility 3 | 1 1 . 1 Device 1 | . . . 1 Storage 2 | 1 1 . . Processor . | . . . . Hackware . | . . . . Protection . | . . . . Artifact . | . . . . Weapon 4 | 2 . 1 1 Energy Gun 1 | 1 . . . Energy Cannon . | . . . . Ballistic Gun 1 | 1 . . . Ballistic Cannon 1 | . . 1 . Launcher . | . . . . Special Weapon 1 | . . . 1 Impact Weapon . | . . . . Slashing Weapon . | . . . . Piercing Weapon . | . . . . Special Melee Weapon . | . . . . Unidentified Prototypes . | . . . . Parts Lost 3 | . . . 3 Power . | . . . . Propulsion 2 | . . . 2 Utility . | . . . . Weapon 1 | . . . 1 Highest Loss Streak 3 | . . . 3 Average Slot Usage (%) 95 | . 95 100 91 Engine 12 | . 14 14 11 Treads 18 | . 28 28 . Flight 15 | . . . 43 Device 2 | . . . 6 Storage 22 | . 23 28 15 Energy Gun 5 | . 14 5 . Ballistic Gun 10 | . 14 14 4 Ballistic Cannon 3 | . . 8 . Special Weapon 3 | . . . 10 Naked Turns . | . . . . Heaviest Build 17 | 12 16 17 15 Greatest Support 40 | 40 40 40 16 Greatest Overweight (x) 1 | . . . 1 Average Overweight (x) . | . . . . Largest Inventory Capacity 8 | 6 8 8 8 Average Capacity 7 | 5 7 8 6 Most Carried 8 | 6 8 8 8 Average Carried 6 | 3 6 7 5 Final Capacity 8 | 6 8 8 6 Final Carried 8 | 6 8 8 6 Class Distribution -------------------- 69% | Mutant 18% | Scavenger-Mutant 11% | Scavenger-Sprinter Dominant Class ---------------- Mutant | -10/Materials Mutant | -10/Mines Scavenger-Mutant | -9/Materials Resources | -11 -10 -10 -9 ----------- Run | Scr Mat Min Mat Matter Collected 366 | 262 . 91 13 Remotely . | . . . . Salvage Created 184 | 62 . 109 13 Parts 11 | 3 . 8 . Haulers Intercepted 1 | . . . 1 Recyclers Shooed . | . . . . Parts Field Recycled . | . . . . Retrieved Matter . | . . . . Parts Self-Destructed . | . . . . Prevented . | . . . . Kills | -11 -10 -10 -9 ------- Run | Scr Mat Min Mat Combat Hostiles Destroyed 5 | . . 5 . Guns 3 | . . 3 . Cannons 2 | . . 2 . Classes Destroyed 4 | 1 . 2 1 Hauler 1 | . . . 1 Recycler 1 | 1 . . . Swarmer 3 | . . 3 . Grunt 2 | . . 2 . Best Kill Streak 3 | 1 . 3 1 Combat Bots Only 3 | . . 3 . Max Kills in Single Turn 2 | 1 . 2 1 Gunslinging 1 | . . 1 . Exploded . | . . . . Melee . | . . . . Uniques/NPCs Destroyed . | . . . . Combat | -11 -10 -10 -9 -------- Run | Scr Mat Min Mat Damage Taken 390 | . . 234 156 Core 103 | . . 54 49 Absorbed by Shields . | . . . . Core Remaining (%) 89 | 100 . 78 . Volleys Fired 36 | 2 . 12 22 Largest 2 | 2 . 2 1 Hottest 100 | 60 . 60 100 Shots Fired 50 | 4 . 24 22 Gun 25 | 4 . 15 6 Cannon 9 | . . 9 . Launcher . | . . . . Special 16 | . . . 16 Kinetic 29 | 2 . 21 6 Thermal 16 | . . . 16 Explosive . | . . . . Electromagnetic 5 | 2 . 3 . Robot Hit Streak 15 | 3 . 15 6 Robot Miss Streak 4 | 1 . 3 4 Penetration Max . | . . . . Secondary Targets 1 | . . 1 . Max Gunslinging Chain 1 | . . 1 . Shots Hit Robots 26 | 3 . 19 4 Core Hits 14 | 2 . 9 3 Critical Hits . | . . . . Critical Kills . | . . . . Critical Parts Destroyed . | . . . . Melee Attacks . | . . . . Impact . | . . . . Slashing . | . . . . Piercing . | . . . . Sneak Attacks . | . . . . Combat Hostiles . | . . . . Follow-up Attacks . | . . . . Damage Inflicted 362 | 73 . 221 68 Guns 170 | 35 . 115 20 Cannons 106 | . . 106 . Explosions 38 | 38 . . . Melee . | . . . . Ramming . | . . . . Kinetic 226 | 7 . 199 20 Thermal 86 | 38 . . 48 Explosive . | . . . . Electromagnetic 50 | 28 . 22 . Impact . | . . . . Slashing . | . . . . Piercing . | . . . . Highest Corruption . | . . . . Average Corruption . | . . . . Corruption Purged . | . . . . Overload Shots . | . . . . Overflow Damage 2 | . . . 2 Projectiles 2 | . . . 2 Explosions . | . . . . Melee . | . . . . Knockbacks 1 | . . 1 . Impact . | . . . . Kinetic 1 | . . 1 . Secondary . | . . . . Self-Inflicted Damage . | . . . . Shots . | . . . . Rammed . | . . . . Targets Rammed . | . . . . Kicked . | . . . . Crushed . | . . . . Highest Temperature 105 | 20 . 87 105 Average Temperature 36 | 15 . 34 38 Received Heat Transfer 135 | . . 81 54 Siege Activations . | . . . . Robots Corrupted . | . . . . Combat Hostiles . | . . . . Parts Fried . | . . . . Impact Corruptions . | . . . . Robots Melted . | . . . . Combat Hostiles . | . . . . Parts Melted . | . . . . Heat Transferred 150 | 50 . . 100 Parts Sabotaged . | . . . . Parts Stolen . | . . . . Parts Stripped . | . . . . Power Chain Reactions 1 | 1 . . . Missiles Intercepted . | . . . . Alert | -11 -10 -10 -9 ------- Run | Scr Mat Min Mat Peak Influence 173 | 5 3 120 173 Average Influence 51 | 2 3 68 82 Maximum Alert Level . | . . . . Low Security (%) 100 | 100 100 100 100 Level 1 . | . . . . Level 2 . | . . . . Level 3 . | . . . . Level 4 . | . . . . Level 5 . | . . . . High Security . | . . . . Max Security . | . . . . Squads Dispatched 3 | . . . 3 Investigation 1 | . . . 1 Extermination . | . . . . Reinforcement 2 | . . . 2 Assault . | . . . . Garrison . | . . . . Intercept . | . . . . Construction Impeded . | . . . . Haulers Reinforced . | . . . . Stealth | -11 -10 -10 -9 --------- Run | Scr Mat Min Mat Distress Signals 2 | . . . 2 Communications Jammed . | . . . . Distress Signals . | . . . . Times Spotted 22 | . . 5 17 Peak Tracking Total 12 | . . 3 12 Tactical Retreats 2 | . . . 2 Traps | -11 -10 -10 -9 ------- Run | Scr Mat Min Mat Traps Triggered . | . . . . Indirectly . | . . . . Trap Hack Attempts . | . . . . Triggered . | . . . . Disarmed . | . . . . Reprogrammed . | . . . . Reused . | . . . . Traps Extracted . | . . . . Installed . | . . . . Triggered . | . . . . Machines | -11 -10 -10 -9 ---------- Run | Scr Mat Min Mat Machines Disabled . | . . . . Max in Single Turn . | . . . . Machines Sabotaged . | . . . . Garrisons Compromised . | . . . . Overloaded Fab Kills . | . . . . Fab Network Shutdowns . | . . . . Hacking | -11 -10 -10 -9 --------- Run | Scr Mat Min Mat Machines Accessed 1 | . . . 1 Terminals . | . . . . Fabricators . | . . . . Repair Stations . | . . . . Recycling Units . | . . . . Scanalyzers 1 | . . . 1 Garrison Access . | . . . . Total Hacks 4 | . . . 4 Successful 4 | . . . 4 Failed . | . . . . Catastrophic . | . . . . Database Lockouts . | . . . . Manual . | . . . . Terminals . | . . . . Fabricators . | . . . . Repair Stations . | . . . . Recycling Units . | . . . . Scanalyzers 4 | . . . 4 Garrison Access . | . . . . Terminal Hacks . | . . . . Fabricator Hacks . | . . . . Repair Station Hacks . | . . . . Recycling Unit Hacks . | . . . . Scanalyzer 4 | . . . 4 Insert Component 2 | . . . 2 Analyze 2 | . . . 2 Garrison Access Hacks . | . . . . Unauthorized Hacks . | . . . . Terminals . | . . . . Fabricators . | . . . . Repair Stations . | . . . . Recycling Units . | . . . . Scanalyzers . | . . . . Garrison Access . | . . . . Data Cores Recovered . | . . . . Used . | . . . . Hacking Detections 1 | . . . 1 Full Trace Events 1 | . . . 1 Feedback Events . | . . . . Feedback Blocked . | . . . . Robot Schematics Acquired . | . . . . Robots Built . | . . . . Matter . | . . . . Time . | . . . . Total Robot Build Rating . | . . . . Part Schematics Acquired 2 | . . . 2 Parts Built . | . . . . Matter . | . . . . Time . | . . . . Total Part Build Rating . | . . . . Parts Repaired . | . . . . Time . | . . . . Parts Recycled . | . . . . Recycled Matter . | . . . . Retrieved Matter . | . . . . Retrieved Components . | . . . . Parts Scanalyzed 2 | . . . 2 Part Schematics Acquired 2 | . . . 2 Parts Damaged . | . . . . Bothacking | -11 -10 -10 -9 ------------ Run | Scr Mat Min Mat Used RIF Installer . | . . . . Robots Hacked . | . . . . Non-combat . | . . . . Combat . | . . . . Robot Hacks Applied . | . . . . Relay Couplers Released . | . . . . Robots Rewired . | . . . . Allies Hacked . | . . . . Hacks Repelled . | . . . . Allies | -11 -10 -10 -9 -------- Run | Scr Mat Min Mat Total Allies . | . . . . Largest Group . | . . . . Highest-Rated Group . | . . . . Highest-Rated Ally . | . . . . Total Orders . | . . . . Ally Attacks . | . . . . Total Damage . | . . . . Kills . | . . . . Allies Corrupted . | . . . . Allies Melted . | . . . . Intel | -11 -10 -10 -9 ------- Run | Scr Mat Min Mat Robot Analysis Total . | . . . . Derelict Logs Recovered . | . . . . Drone Launches . | . . . . Drone Recoveries . | . . . . Exploration | -11 -10 -10 -9 ------------- Run | Scr Mat Min Mat Turns Passed 870 | 106 172 326 266 Spaces Moved 639 | 60 106 168 305 Core 11 | 11 . . . Treads 323 | 49 106 168 . Legs . | . . . . Wheels . | . . . . Hover . | . . . . Flight 305 | . . . 305 Fastest Speed 31 | 50 160 160 31 Average Speed 97 | 139 160 160 33 Slowest Speed 160 | 160 160 160 117 Overloaded Moves . | . . . . Propulsion Burnouts . | . . . . Robots Hopped 4 | . . . 4 Cave-ins Triggered . | . . . . Exploration Rate (%) 18 | 5 15 22 32 Regions Visited 3 Branch Regions 1 Pre-discovered Areas . | . . . . Known Exits Taken . | . . . . Unknown Exits Taken 3 | 1 1 1 . Scrap Searched 1 | . . 1 . Spaces Dug 14 | . . . 14 Terrain Destroyed 18 | 4 . . 14 Melee . | . . . . Projectile 14 | . . . 14 AOE 4 | 4 . . . Actions | -11 -10 -10 -9 --------- Run | Scr Mat Min Mat Total 804 | 78 109 206 411 Wait 91 | . . 14 77 Move 628 | 59 105 167 297 Hop 4 | . . . 4 Pick Up 22 | 11 3 6 2 Fast Attach 1 | 1 . . . Attach 9 | 5 1 . 3 Detach . | . . . . Swap 4 | . . 1 3 Drop 9 | . . 6 3 Fire 36 | 2 . 12 22 Melee . | . . . . Ram . | . . . . Kick . | . . . . Crush . | . . . . Escape Stasis . | . . . . Rewire . | . . . . Trap . | . . . . Miscellaneous . | . . . . Route ------- -11/Scrapyard -10/Materials -10/Mines -9/Materials History --------- Turn | Location | Event 4 | -11/Scrapyard | Discovered new exit (range 15) 107 | -11/Scrapyard | Entered Materials 194 | -10/Materials | Discovered new exit (range 16) 279 | -10/Materials | Entered Mines 313 | -10/Mines | Build established: Mutant 420 | -10/Mines | A weapon hastily lodged in a ceiling crevice suddenly fell to the ground 592 | -10/Mines | Discovered new exit (range 6) 596 | -10/Mines | Received a Rocket Launcher from a helpful Derelict 605 | -10/Mines | Entered Materials 605 | -9/Materials | Evolved 2 slots: Propulsion x2 871 | -9/Materials | Self-destructed Last Messages --------------- 00707_ K-01 Serf collects debris. 00825_ O-16 Technician: "IFF HANDSHAKE FAILED. SECURING TERMINAL." 00828_ ALERT: Hostiles spotted, dispatching reinforcements to Terminal M012. 00833_ K-01 Serf collects debris. 00834_ U-05 Engineer builds a Wall. 00841_ T-07 Excavator is excavating. 00843_ O-16 Technician sends out distress signal. 00843_ O-16 Technician: "IFF HANDSHAKE FAILED. SECURING TERMINAL." 00844_ W-16 Scout sends out distress signal. 00845_ T-07 Excavator is excavating. 00848_ ALERT: Hostiles spotted, dispatching reinforcements to Terminal M011. 00848_ U-05 Engineer builds a Wall. 00849_ T-07 Excavator is excavating. 00852_ U-05 Engineer builds a Wall. 00866_ Flight Unit destroyed. 00867_ U-05 Engineer builds a Wall. 00869_ Flight Unit destroyed. 00869_ Mining Laser destroyed. Map ----- +----------------------------------------------------+ | ???????????????? ??????????????????# #????????# | | ???????????????? ??????????????????# #????????# | | ???????????????# #????##########???# #????????# | | ???????????????# #????# #???# #????????# | | ???????????????# #????# """ #???# #????????# | | ???????????????? ?????#= """ #???# #????????# | | ???????????????? ?????# """ #???# #????????# | | ???????????????? ?????# #???# #????????+ | | ???????????????? ?????# """ #???# #????????## | | ???????????????? ?????# """ #???# #?????????? | | ???????????????? ?????# """ #???# #?????????? | | ????????????????# #????## #???# #?????????? | | ????????????????# #????#"####+######## #?????????? | | ????????????????# #######"## #?????????? | | ????????????????# # ## #?????????? | | ????????????????# # ## ####???####### | | ????????????????# # """ ## ####+######?# ! | | ????????????????# + """ ## # + #?# | | ????????????????# # """ ## # ## #?# | | ???????????????## #"######## # ## #?# """"" | | ???????????????# ##??????# + ## #?# """"" | | ???????????????# T ######### # ## #?# """"" | | ???????????????# # = !## # ## #?# """"" | | ???????????????## ## g ## #########+#?# """"" | | ????????????????# #; g ""s## #??????? !???""""" | | ????????????????# ## T"@s# #??????? ???""""" | | ????????????????# ## Y""s## #?????? ??? | | ????????????????# ## g ## #?????? """???#### | | ????????????????# ######Y## ?????# """#?????? | | ????????????????# u T ?????# """#?????? | | ???????????????# "" ?????/ """#?????? | | ???????????????## ?????# ?????????? | | ????????????????########+## ?????# ?????????? | | ??????????????????????????##? #?????# ?????????? | | ?????????????????????????????? ??????# ?????????? | | ?????????????????????????????? ??????# ??????????? | | ?????????????????????????????????????##??????????? | | ?????????????????????????????????????????????????? | | ?????????????????????????????????????????????????? | | ?????????????????????????????????????????????????? | | ?????????????????????????????????????????????????? | | ?????????????????????????????????????????????????? | | ?????????????????????????????????????????????????? | | ?????????????????????????????????????????????????? | | ?????????????????????????????????????????????????? | | | | | | | | | | | +----------------------------------------------------+ Best States ------------- Heat Dissipation 28 Energy Generation 10 Energy Capacity 250 Matter Stores 300 Matter Capacity 300 Sight Range 16 Terrain Scan Density 10 Evasion (%) 63 Recoil Reduction 2 Item Schematics ----------------- Flight Unit | -9/Materials | Scanalyzed Structural Scanner | -9/Materials | Scanalyzed Robot Schematics ------------------ None Fabricated ------------ Nothing Alien Tech Used ----------------- None Achievements -------------- None Challenges ------------ None Game ------ Seed RecyclingMolecularWings Manual? 0 Play Time 00:15:10 Cumulative 22.4 hours Start 2020.02.09 @ 02:58:13 End 2020.02.09 @ 03:11:20 Sessions 1 Manual Loads 0 Difficulty Rogue Special Mode None Game No. 31 Rogue 31 Adventurer 0 Explorer 0 Win Type - Total 0 Types 0/0/0/0/0/0/0 Lore% 15 Gallery% 21 Achievement% 16 Wizard Run 0 Options --------- ASCII 0 Keyboard 0 Movement Mouse Keybinds 0 Fullscreen 1 Font 18/SmallcapsGlow Map View 76x50 Tactical HUD 1 Map Filters NONE Filters NONE Steam 1 RUN: e3f2b274-65f7-468c-bd37-28e4f097e391